bitfinex-derivatives/quotes_ETHF0:USTF0_20250125
["timestamp","ask_amount","ask_price","bid_price","bid_amount"]
[1737822071322,3.2078,3340.3,3340.1,1.42699501]
[1737822071621,3.68687,3340.3,3340.2,0.36386785]
[1737822072017,3.2078,3340.3,3340.2,0.84294785]
[1737822072218,0.974,3340.5,3340.2,0.9484985]
[1737822072420,0.974,3340.5,3340.4,0.47905]
[1737822072717,0.974,3340.5,3340.4,1.4275485]
[1737822072911,0.974,3340.5,3340.4,2.3515485]
[1737822073214,0.974,3340.5,3340.4,0.81435294]
[1737822073415,1.45304,3340.5,3340.4,0.81478212]
[1737822073618,1.45304,3340.5,3340.4,0.35733755]
[1737822073811,0.47905,3340.4,3340.1,0.47909]
[1737822074012,3.2078,3340.3,3339.9,3.2078]
[1737822074323,3.2078,3340.3,3340.2,0.47908]
[1737822074516,3.2078,3340.3,3340.2,0.93721329]
[1737822074922,3.2078,3340.3,3340.2,0.47908]
[1737822075122,3.2078,3340.3,3340.2,0.82607725]
[1737822077527,0.974,3340.7,3340.6,0.47902]
[1737822077727,0.974,3340.7,3340.6,0.82601725]
[1737822078222,0.974,3340.7,3340.6,1.28180497]
[1737822078822,0.974,3340.7,3340.6,1.28247102]
[1737822079220,0.00448544,3341.1,3340.6,0.80345102]
[1737822079530,0.00448544,3341.1,3341.0,0.47896]
[1737822079725,0.00448544,3341.1,3341.0,0.8266233]
[1737822080023,0.00448544,3341.1,3341.0,1.28241102]
[1737822080825,0.48343544,3341.1,3341.0,0.80373307]
[1737822081229,0.48343544,3341.1,3341.0,0.45578772]
[1737822081524,0.47899,3340.8,3340.7,0.8779]
[1737822081720,0.47899,3340.8,3340.7,0.34801612]
[1737822082026,2.26446629,3340.9,3340.7,0.34801612]
[1737822082225,0.47899,3340.8,3340.6,0.47901]
[1737822082423,0.47899,3340.8,3340.7,0.34803589]
[1737822082619,3.68677,3341.0,3340.7,0.479]
[1737822082825,3.68677,3341.0,3340.8,0.34803226]
[1737822083020,3.68677,3341.0,3340.7,0.479]
[1737822083222,3.68678,3341.0,3340.8,0.34801181]
[1737822083528,0.47898,3340.9,3340.7,0.479]
[1737822083723,0.47898,3340.9,3340.8,0.34801951]
[1737822084528,0.47902,3340.7,3340.4,0.47904]
[1737822084828,3.2078,3340.6,3340.5,0.79748829]
[1737822085327,3.68682,3340.6,3340.5,0.34803466]
[1737822086727,3.2078,3340.6,3340.5,0.34806362]
[1737822086930,3.68682,3340.6,3340.5,0.34806362]
[1737822087519,0.47904,3340.5,3340.2,1.37227]
[1737822087830,0.47906,3340.4,3340.3,0.34807969]
[1737822088629,0.47906,3340.4,3340.3,0.34807377]
[1737822089733,1.44905,3340.5,3340.3,0.34807377]
[1737822089931,0.97,3340.5,3340.2,0.47907]
[1737822090135,0.47905,3340.4,3340.2,0.47907]
[1737822090930,1.44904,3340.5,3340.2,0.47907]
[1737822091234,0.97,3340.5,3340.2,0.47907]
[1737822091428,0.97,3340.5,3340.1,0.47909]
[1737822091732,0.47906,3340.3,3340.2,0.34806252]
[1737822092132,2.26446629,3340.3,3339.8,0.8817]
[1737822092325,0.4791,3340.1,3339.9,0.47912]
[1737822092934,2.26446629,3340.3,3339.8,0.8817]
[1737822093235,0.47908,3340.2,3339.9,0.82704557]
[1737822093435,0.47908,3340.2,3340.0,0.34793557]
[1737822093629,0.47908,3340.2,3340.1,0.34793557]
[1737822094338,0.47908,3340.2,3340.1,0.34798323]
[1737822095934,2.26446629,3340.3,3339.7,3.68695]
[1737822096133,0.47912,3339.9,3339.8,0.34798165]
[1737822096332,0.47916,3339.6,3339.4,0.47918]
[1737822096634,1.44716,3339.6,3339.5,0.34796107]
[1737822097131,1.44716,3339.6,3339.3,1.3932]
[1737822097346,1.44716,3339.6,3339.4,0.34785679]
[1737822097536,1.44716,3339.6,3339.3,1.3932]
[1737822097737,1.44716,3339.6,3339.4,0.34785353]
[1737822097926,0.968,3339.6,3339.4,0.47919]
[1737822098128,1.44718,3339.6,3339.4,0.47919]
[1737822098327,0.47918,3339.5,3339.3,1.3932]
[1737822098534,1.44718,3339.6,3339.4,0.34885996]
[1737822098739,0.47918,3339.5,3339.3,1.3932]
[1737822098931,1.44717,3339.6,3339.4,0.34884233]
[1737822099131,0.968,3339.6,3339.5,0.47918]
[1737822099332,0.968,3339.6,3339.4,0.47919]
[1737822100043,1.44717,3339.6,3339.4,0.47919]
[1737822100227,0.968,3339.6,3339.3,0.914]
[1737822100430,0.47919,3339.4,3339.3,0.914]
[1737822100633,0.47921,3339.3,3339.1,0.47923]
[1737822100832,0.47922,3339.3,3339.0,0.47925]
[1737822101340,0.47923,3339.2,3338.9,0.47925]
[1737822104141,6.38336629,3339.4,3338.8,1.8498]
[1737822104142,0.8675,3339.3,3338.8,1.8498]
[1737822104342,0.47927,3338.9,3338.8,0.9479]
[1737822104849,2.26446629,3339.1,3338.3,3.2078]
[1737822105039,0.47933,3338.5,3338.3,3.2078]
[1737822105237,0.965,3338.5,3338.3,3.68715]
[1737822105438,1.44433,3338.5,3338.3,3.2078]
[1737822105841,0.965,3338.5,3338.3,3.68715]
[1737822106141,1.44433,3338.5,3338.3,3.2078]
[1737822106642,0.47934,3338.4,3338.3,3.2078]
[1737822106835,0.47935,3338.3,3338.2,0.9128]
[1737822107044,3.22946629,3338.5,3338.1,0.9091]
[1737822107240,0.47937,3338.2,3338.1,0.9091]
[1737822107542,0.47937,3338.2,3337.9,0.4794]
[1737822107943,0.47939,3338.1,3337.8,3.68721]
[1737822108144,0.47934,3338.4,3337.9,0.4794]
[1737822108345,0.47937,3338.2,3337.9,0.4794]
[1737822108543,3.22946629,3338.5,3337.9,0.4794]
[1737822108738,0.47935,3338.3,3337.8,3.2078]
[1737822109139,3.22946629,3338.5,3337.8,3.2078]
[1737822109343,0.47939,3338.1,3337.8,3.2078]
[1737822109735,2.26446629,3338.2,3337.8,3.2078]
[1737822109936,0.04753109,3338.4,3338.3,0.47935]
[1737822110242,3.2078,3338.6,3338.5,0.47932]
[1737822110641,0.965,3338.7,3338.6,0.47931]
[1737822116097,3.2078,3339.1,3338.6,3.2078]
[1737822116207,3.2078,3339.1,3339.0,0.47925]
[1737822116475,0.00449236,3339.5,3339.4,0.47919]
[1737822116645,0.00449236,3339.5,3339.4,3.68699]
[1737822117444,0.00449236,3339.5,3339.4,5.95145629]
[1737822117737,0.00449236,3339.5,3339.4,6.29917871]
[1737822119854,0.00449236,3339.5,3339.4,5.95145629]
[1737822120850,3.2078,3340.5,3340.4,0.47905]
[1737822121355,3.73435324,3340.5,3340.3,0.47906]
[1737822121652,0.04751324,3340.4,3340.3,0.47905]
[1737822122449,0.04751324,3340.6,3340.2,3.2078]
[1737822122650,0.96849236,3340.7,3340.6,0.47902]
[1737822122852,0.00449236,3340.7,3340.6,0.47902]
[1737822123048,0.00449236,3340.7,3340.6,3.68682]
[1737822123551,0.00449236,3340.7,3340.6,3.2078]
[1737822124645,0.00449236,3340.7,3340.1,0.8657]
[1737822124854,0.47902,3340.6,3340.1,1.34478]
[1737822125050,3.13506629,3340.6,3340.0,0.00449236]
[1737822125262,0.47909,3340.1,3340.0,0.00449236]
[1737822125550,0.52660319,3340.1,3340.0,0.00449236]
[1737822125745,1.38160319,3340.1,3340.0,0.00449236]
[1737822125952,0.90251319,3340.1,3340.0,0.00449236]
[1737822126251,0.90251208,3340.1,3340.0,0.00449236]
[1737822126449,1.38160208,3340.1,3340.0,0.00449236]
[1737822134353,1.3816007,3340.1,3340.0,0.00449236]
[1737822134555,1.3826007,3340.1,3340.0,0.00449236]
[1737822137066,1.38260113,3340.1,3340.0,0.00449236]
[1737822137253,2.34660113,3340.1,3340.0,0.00449236]
[1737822137653,0.965,3340.1,3340.0,0.00449236]
[1737822137963,1.0125126,3340.1,3340.0,0.48360236]
[1737822138257,0.0485126,3340.1,3340.0,0.00449236]
[1737822138663,0.5276026,3340.1,3340.0,0.00449236]
[1737822139060,0.48009,3340.1,3340.0,0.00449236]
[1737822139262,0.52760273,3340.1,3340.0,0.00449236]
[1737822139462,0.04851273,3340.1,3340.0,0.00449236]
[1737822139667,0.52760273,3340.1,3340.0,0.00449236]
[1737822140661,0.48009,3340.1,3340.0,0.00449236]
[1737822140961,0.52760114,3340.1,3340.0,0.00449236]
[1737822141560,0.04851114,3340.1,3339.2,4.9768]
[1737822141763,0.04851114,3340.1,3339.3,0.47921]
[1737822141764,2.74363629,3339.6,3339.3,0.47921]
[1737822142374,2.26446629,3339.6,3339.2,4.0969]
[1737822142562,0.47921,3339.3,3339.2,0.8891]
[1737822142762,2.26446629,3339.6,3338.9,0.47926]
[1737822143065,0.47924,3339.1,3338.8,1.36097]
[1737822143261,0.964,3339.3,3338.8,0.8817]
[1737822143568,0.47923,3339.2,3338.9,0.47926]
[1737822143767,0.964,3339.3,3338.8,0.8817]
[1737822144068,3.22846629,3339.3,3338.8,0.8817]
[1737822144269,0.47925,3339.0,3338.8,0.8817]
[1737822144466,0.47925,3339.1,3338.8,1.36098]
[1737822144668,0.47924,3339.1,3338.8,1.36097]
[1737822144868,0.47924,3339.1,3338.9,0.47926]
[1737822145770,0.964,3339.3,3338.8,0.8817]
[1737822146169,0.964,3339.3,3339.2,0.47922]
[1737822146474,0.47915,3339.7,3339.4,0.47919]
[1737822146668,0.47915,3339.7,3338.7,4.40601]
[1737822146669,0.04750893,3339.6,3339.0,40.8]
[1737822146862,4.60154522,3339.6,3338.8,1.7212]
[1737822147067,4.12237522,3339.6,3338.9,0.34831721]
[1737822147265,0.04750893,3339.5,3339.2,0.47921]
[1737822147466,0.04750893,3339.5,3339.3,0.4792]
[1737822147768,0.04750893,3339.5,3338.8,1.7212]
[1737822147968,0.964,3339.7,3339.4,0.47919]
[1737822148173,0.964,3339.7,3339.6,0.47916]
[1737822148568,0.964,3339.7,3339.5,2.24857]
[1737822149579,1.44316,3339.7,3339.5,1.7694]
[1737822149770,1.44317,3339.6,3339.5,0.8773]
[1737822150170,1.49067989,3339.6,3339.5,0.8773]
[1737822150469,1.44317,3339.6,3339.5,0.8773]
[1737822150676,1.49067964,3339.6,3339.5,0.8773]
[1737822150874,1.44317,3339.6,3339.5,0.8773]
[1737822151970,1.49067241,3339.6,3339.5,0.8773]
[1737822152169,1.44317,3339.6,3339.5,0.8773]
[1737822152867,1.49066529,3339.6,3339.5,0.8773]
[1737822153175,1.44317,3339.6,3339.5,0.8773]
[1737822153570,1.49065473,3339.6,3339.5,0.8773]
[1737822153770,1.53814072,3339.6,3339.5,0.8773]
[1737822153976,1.05896961,3339.6,3339.0,0.8921]
[1737822154172,0.47923,3339.2,3339.1,0.3546867]
[1737822154476,0.47923,3339.2,3338.7,3.2078]
[1737822154477,0.47928,3338.8,3338.7,3.2078]
[1737822154677,2.26446629,3339.2,3338.7,3.2078]
[1737822154878,3.15146629,3339.2,3338.7,3.2078]
[1737822155075,0.52672391,3339.1,3338.8,0.47927]
[1737822155273,0.04747391,3339.0,3338.7,3.2078]
[1737822155476,0.47928,3338.8,3338.7,3.2078]
[1737822155976,2.26446629,3339.2,3338.5,0.8912]
[1737822156174,0.47928,3338.8,3338.5,1.37052]
[1737822156372,1.44731,3338.7,3338.5,0.8912]
[1737822156680,0.47931,3338.6,3338.5,0.8912]
[1737822157176,0.968,3338.7,3338.3,0.8696]
[1737822157372,0.5267766,3338.6,3338.4,0.9462]
[1737822157574,0.47932,3338.5,3338.4,0.9462]
[1737822157880,0.968,3338.7,3338.4,0.9462]
[1737822158268,0.968,3338.7,3338.6,0.47931]
[1737822158679,0.968,3338.7,3338.4,0.9462]
[1737822158979,1.4473,3338.7,3338.4,1.42553]
[1737822159371,1.4473,3338.7,3338.4,0.9462]
[1737822159567,1.4473,3338.7,3338.4,1.42553]
[1737822159779,0.968,3338.7,3338.4,0.9462]
[1737822159980,0.47932,3338.5,3338.4,0.9462]
[1737822160183,0.47932,3338.6,3338.4,1.42553]
[1737822160367,0.967,3338.8,3338.4,0.9462]
[1737822160567,0.52675597,3338.7,3338.5,0.47932]
[1737822160772,0.967,3338.9,3338.4,0.9462]
[1737822160970,0.967,3338.9,3338.8,0.47928]
[1737822162977,0.967,3338.9,3338.8,0.93499256]
[1737822163178,0.47925,3339.0,3338.8,0.93499256]
[1737822163378,0.47925,3339.0,3338.9,0.9132]
[1737822163681,0.48372236,3339.2,3339.0,0.47924]
[1737822163875,0.48372236,3339.2,3339.1,0.9319]
[1737822165386,0.00449236,3339.2,3339.1,1.41114]
[1737822166375,0.00449236,3339.2,3339.1,1.76180928]
[1737822167184,0.00449236,3339.2,3339.1,1.28256432]
[1737822167383,0.00449236,3339.2,3339.1,1.76180432]
[1737822169078,0.00449236,3339.2,3339.1,1.76184424]
[1737822170985,0.00449236,3339.2,3339.1,2.21777918]
[1737822171187,0.00449236,3339.2,3339.1,2.21781183]
[1737822171589,0.00449236,3339.2,3339.1,1.76187689]
[1737822172591,0.00449236,3339.2,3339.1,2.21787522]
[1737822172985,0.00449236,3339.2,3339.1,1.86713833]
[1737822173291,0.00449236,3339.2,3339.1,2.21792297]
[1737822174987,0.00449236,3339.2,3339.1,2.21790126]
[1737822177587,0.00449236,3339.2,3339.1,2.67196148]
[1737822180100,0.00449236,3339.2,3339.1,2.96118774]
[1737822180693,0.00449236,3339.2,3339.1,3.41522025]
[1737822181088,0.48371236,3339.2,3339.1,3.41522025]
[1737822181299,0.48371236,3339.2,3339.1,2.61042481]
[1737822181492,0.00449236,3339.2,3339.1,1.41114]
[1737822181693,0.48371236,3339.2,3339.1,2.21582515]
[1737822181895,0.48371236,3339.2,3339.1,2.96958576]
[1737822182393,0.48371236,3339.2,3339.1,2.96958907]
[1737822182593,0.00449236,3339.2,3339.1,2.22635141]
[1737822183491,0.00449236,3339.2,3339.1,2.96961537]
[1737822184095,0.00449236,3339.2,3339.1,2.22635141]
[1737822185396,0.00449236,3339.2,3339.1,4.94482761]
[1737822185904,0.04748473,3339.6,3339.5,0.47918]
[1737822186102,0.04748473,3339.6,3339.5,0.82986787]
[1737822186594,0.04748473,3339.6,3339.5,0.47918]
[1737822186790,0.04748473,3339.6,3339.5,1.29436556]
[1737822186995,0.52664473,3339.6,3339.5,1.29436556]
[1737822187503,0.04748473,3339.6,3339.5,1.29436556]
[1737822188206,0.04748473,3339.6,3339.5,1.29435284]
[1737822188706,0.04414741,3339.6,3339.5,1.29435284]
[1737822190297,0.04414741,3339.6,3339.5,0.81517284]
[1737822190496,0.52331741,3339.6,3339.5,0.81517284]
[1737822191105,0.04414741,3339.6,3339.5,1.29435284]
[1737822191506,0.04414741,3339.6,3339.5,1.29464505]
[1737822193910,0.04414741,3339.6,3339.5,0.83017057]
[1737822194099,0.04414741,3339.6,3339.5,1.74444152]
[1737822194495,0.04414741,3339.6,3339.5,1.29005272]
[1737822194700,0.04414741,3339.6,3339.5,1.74444387]
[1737822195313,0.04414741,3339.6,3339.5,1.74450251]
[1737822195914,0.04414741,3339.6,3339.5,1.74454253]
[1737822196214,3.2078,3340.0,3339.7,2.26446629]
[1737822196422,3.2078,3340.0,3339.9,0.47912]
[1737822196718,3.2078,3340.0,3339.9,1.28460038]
[1737822196915,3.2078,3340.0,3339.9,1.74448253]
[1737822197308,0.001,3340.1,3339.9,1.26536253]
[1737822197509,0.001,3340.1,3340.0,4.49239038]
[1737822197713,0.001,3340.1,3340.0,6.75685667]
[1737822197920,0.001,3340.1,3340.0,7.21673882]
[1737822198712,2.26446629,3341.3,3340.0,6.73762882]
[1737822198919,0.47898,3340.9,3340.8,0.47899]
[1737822199220,0.47905,3340.4,3340.3,3.43106]
[1737822199419,3.2078,3340.7,3340.3,3.30267473]
[1737822199616,0.47904,3340.5,3340.4,0.82972473]
[1737822199917,0.47904,3340.5,3340.4,0.35049899]
[1737822200120,1.36554,3340.5,3340.4,0.35049899]
[1737822200923,2.26864,3340.5,3340.4,0.35049899]
[1737822201816,2.26864,3340.5,3340.4,0.35031724]
[1737822203722,1.7896,3340.5,3340.2,0.47907]
[1737822204016,0.47905,3340.4,3340.3,0.35021893]
[1737822204223,0.47905,3340.4,3340.3,0.82927893]
[1737822207125,1.7896,3340.5,3340.3,0.35021893]
[1737822207314,2.26865,3340.5,3340.4,0.47905]
[1737822207820,1.7896,3340.5,3339.9,3.2078]
[1737822208119,1.7896,3340.5,3340.0,0.35014544]
[1737822208425,2.74355629,3340.1,3340.0,0.45877806]
[1737822208823,2.26446629,3340.1,3339.8,0.47913]
[1737822209121,0.47913,3339.9,3339.8,0.47913]
[1737822209323,0.47913,3339.9,3339.8,0.82930838]
[1737822209522,2.29573,3339.9,3339.8,0.82930838]
[1737822209718,1.8166,3339.9,3339.8,0.82932081]
[1737822211224,1.8166,3339.9,3339.8,0.82934443]
[1737822211721,3.2078,3340.2,3339.8,0.3502338]
[1737822211926,2.2156,3340.1,3339.9,0.3502338]
[1737822212125,1.7365,3340.1,3340.0,0.47911]
[1737822213018,2.21559,3340.1,3340.0,0.47911]
[1737822213220,0.47911,3340.0,3339.5,3.2078]
[1737822213413,0.47911,3340.0,3339.9,0.47912]
[1737822213616,1.7365,3340.1,3339.6,0.45905232]
[1737822213919,0.52629965,3340.0,3339.8,0.47914]
[1737822214126,0.47911,3340.0,3339.6,0.45905232]
[1737822214422,2.2156,3340.1,3340.0,0.47911]
[1737822214631,3.68689,3340.2,3340.1,0.47909]
[1737822214919,3.25498813,3340.2,3340.1,0.47909]
[1737822215119,3.2078,3340.2,3340.1,0.82949041]
[1737822215714,3.2078,3340.2,3340.1,1.28867984]
[1737822216120,0.9358,3340.5,3340.4,0.47905]
[1737822216320,1.46202437,3340.5,3340.4,0.47905]
[1737822216519,1.41484,3340.5,3340.4,0.47905]
[1737822216827,0.47909,3340.1,3340.0,0.4791]
[1737822217127,3.68689,3340.1,3339.9,0.47911]
[1737822217333,1.7757,3340.0,3339.9,0.47911]
[1737822217518,2.25481,3340.0,3339.9,0.82964537]
[1737822217828,2.25481,3340.0,3339.9,0.82964755]
[1737822218023,1.7757,3340.0,3339.9,0.82964755]
[1737822219026,2.25481,3340.0,3339.9,0.35053755]
[1737822219230,0.47914,3339.8,3339.7,0.47915]
[1737822219425,0.47914,3339.8,3339.7,0.82973675]
[1737822219630,0.8831,3339.9,3339.8,0.47914]
[1737822219929,0.8831,3339.9,3339.8,0.82972726]
[1737822220122,1.36222,3339.9,3339.8,0.82972726]
[1737822220927,0.8831,3339.9,3339.8,0.82972726]
[1737822221729,0.8831,3339.9,3339.8,0.82976504]
[1737822222618,3.2078,3340.1,3339.8,0.35062504]
[1737822222821,3.2078,3340.1,3340.0,0.47911]
[1737822223219,3.2078,3340.1,3340.0,0.82973691]
[1737822224527,3.25496084,3340.1,3340.0,0.47911]
[1737822226126,3.2078,3340.1,3340.0,0.82979947]
[1737822227334,3.2078,3340.1,3340.0,0.8298073]
[1737822227635,3.2078,3340.1,3340.0,0.8298184]
[1737822228237,2.766,3340.5,3340.0,0.3507084]
[1737822228434,0.00449236,3340.8,3340.4,0.47905]
[1737822228733,1.01016405,3340.7,3340.3,0.47906]
[1737822228928,5.51943034,3340.6,3340.1,1.32064641]
[1737822229138,0.47906,3340.4,3340.2,0.35075321]
[1737822229339,0.47906,3340.4,3340.3,0.35075321]
[1737822230028,0.52622318,3340.4,3340.3,0.35075321]
[1737822230937,0.47906,3340.4,3340.3,0.35075321]
[1737822231636,0.52621674,3340.4,3340.3,0.3508351]
[1737822232436,0.04715674,3340.4,3340.1,0.8611]
[1737822232638,0.47906,3340.3,3340.2,0.35088455]
[1737822233434,2.74352629,3340.3,3340.2,0.35088455]
[1737822233739,2.74352629,3340.3,3339.7,1.42914]
[1737822233740,0.47913,3339.9,3339.7,1.42914]
[1737822234039,0.47913,3339.9,3339.8,0.35092917]
[1737822235442,0.47919,3339.5,3339.2,0.00449236]
[1737822235637,0.47919,3339.4,3339.3,0.35100095]
[1737822235842,0.47919,3339.4,3339.3,0.80388414]
[1737822236040,3.16619,3339.5,3339.3,0.83021095]
[1737822236236,3.16619,3339.5,3339.4,0.35100095]
[1737822237448,0.47921,3339.3,3339.2,0.00449236]
[1737822237644,3.68701,3339.3,3339.2,0.00449236]
[1737822237937,3.68701,3339.3,3339.2,0.35540623]
[1737822237938,3.73414243,3339.3,3339.2,0.35540623]
[1737822238137,3.73414585,3339.3,3339.2,0.35540623]
[1737822238338,3.73414585,3339.3,3339.2,0.00449236]
[1737822239535,3.68701,3339.3,3339.2,0.00449236]
[1737822239940,3.73415001,3339.3,3339.2,0.00449236]
[1737822240543,3.25494001,3339.3,3339.2,0.48371236]
[1737822240841,2.28748,3339.5,3339.3,0.4792]
[1737822241043,0.0471447,3339.4,3339.2,0.00449236]
[1737822241247,0.47921,3339.3,3339.2,0.00449236]
[1737822241447,1.38601,3339.3,3339.2,0.00449236]
[1737822241646,1.4331547,3339.3,3339.2,0.00449236]
[1737822241845,0.9539447,3339.3,3339.2,0.00449236]
[1737822242149,3.687,3339.4,3339.2,0.8342327]
[1737822242344,2.74367629,3339.3,3339.2,0.00449236]
[1737822242544,2.79080711,3339.3,3339.2,0.00449236]
[1737822245142,0.47931,3338.7,3338.4,3.43133]
[1737822245341,8.50965711,3339.3,3338.3,1.40285]
[1737822245342,1.36112,3338.6,3338.3,1.40285]
[1737822245549,3.19822,3338.6,3338.3,1.40285]
[1737822245752,3.19822,3338.6,3338.4,0.47934]
[1737822246144,3.19822,3338.6,3338.3,1.40285]
[1737822247346,2.7189,3338.6,3338.4,0.47933]
[1737822247746,0.8818,3338.6,3338.4,0.47933]
[1737822248650,0.8818,3338.6,3338.5,0.47932]
[1737822248850,0.8818,3338.6,3338.4,0.47933]
[1737822249853,1.36112,3338.6,3338.3,1.40285]
[1737822250551,0.8818,3338.6,3338.4,0.47934]
[1737822251549,0.47931,3338.7,3338.4,0.47934]
[1737822251746,0.47931,3338.6,3338.4,0.47934]
[1737822253154,0.4793,3338.7,3338.4,0.47934]
[1737822253749,0.96849236,3338.8,3338.7,0.47929]
[1737822253953,1.01561839,3338.8,3338.7,0.47929]
[1737822254255,0.00449236,3338.8,3338.7,0.47929]
[1737822255758,0.00449236,3338.8,3338.4,3.2078]
[1737822256055,0.00449236,3338.8,3338.5,0.47931]
[1737822256056,0.4793,3338.7,3338.5,0.47931]
[1737822256457,0.48378236,3338.8,3338.5,0.47931]
[1737822256754,0.00449236,3338.8,3338.7,0.47929]
[1737822257149,0.00449236,3338.8,3338.4,3.2078]
[1737822257352,0.00449236,3338.8,3338.7,0.47929]
[1737822257553,0.00449236,3338.8,3338.7,0.8288099]
[1737822258551,0.00449236,3338.8,3338.7,1.6917099]
[1737822259256,0.00449236,3338.8,3338.7,1.69177128]
[1737822259959,0.00449236,3338.8,3338.7,1.69188203]
[1737822261261,0.00449236,3338.8,3338.7,1.69201682]
[1737822262050,0.48377236,3338.8,3338.7,1.69201682]
[1737822262252,2.26895865,3338.8,3338.3,0.9235]
[1737822262449,2.7449,3338.7,3338.3,0.9235]
[1737822262660,0.47934,3338.4,3338.3,0.9235]
[1737822262857,0.47934,3338.4,3338.3,1.27368716]
[1737822263364,0.47934,3338.4,3338.2,0.00449236]
[1737822263365,0.47935,3338.3,3338.2,0.00449236]
[1737822263553,0.52645792,3338.3,3338.2,0.00449236]
[1737822263757,1.49045792,3338.3,3338.2,0.00449236]
[1737822264060,1.49045792,3338.3,3336.6,2.26446629]
[1737822264061,0.47949,3337.4,3337.2,5.4899]
[1737822264264,0.47948,3337.5,3337.3,0.35036583]
[1737822264464,0.47948,3337.5,3337.4,0.35036583]
[1737822265060,0.47948,3337.5,3337.2,5.4899]
[1737822265364,0.47948,3337.4,3337.2,5.4899]
[1737822265753,0.47948,3337.4,3337.2,5.0104]
[1737822266165,0.47948,3337.4,3337.3,0.35024744]
[1737822266362,0.47948,3337.4,3337.2,5.0104]
[1737822266561,3.2078,3337.3,3337.1,0.00449236]
[1737822266767,0.47951,3337.2,3337.1,0.00449236]
[1737822267155,1.45978665,3337.2,3337.1,0.00449236]
[1737822268466,3.72425294,3337.2,3337.1,0.00449236]
[1737822268767,4.65965294,3337.2,3337.1,0.00449236]
[1737822269162,0.47965,3336.3,3336.0,3.2078]
[1737822269363,0.8765,3336.2,3336.0,3.2078]
[1737822269961,0.47967,3336.1,3336.0,3.2078]
[1737822270168,0.4797,3335.9,3335.6,0.8807]
[1737822270460,0.47971,3335.9,3335.6,0.8807]
[1737822270665,2.31152613,3336.1,3335.6,0.8807]
[1737822270666,2.74413629,3336.1,3335.6,1.36043]
[1737822271369,2.26446629,3336.1,3335.7,0.47973]
[1737822271573,2.26446629,3336.1,3335.3,0.47977]
[1737822271868,0.47969,3336.0,3335.5,0.47974]
[1737822272165,2.26446629,3336.1,3335.1,0.8807]
[1737822272363,0.8765,3336.2,3335.4,3.2078]
[1737822272768,0.8765,3336.2,3335.4,4.1358]
[1737822273266,0.8765,3336.2,3336.0,0.47967]
[1737822273961,0.8765,3336.2,3335.4,4.1358]
[1737822274164,0.8765,3336.2,3335.9,0.47969]
[1737822274562,0.8765,3336.2,3335.4,4.1358]
[1737822274868,0.8765,3336.2,3335.9,0.47968]
[1737822275061,0.8765,3336.2,3336.0,0.47968]
[1737822276569,0.8765,3336.2,3336.1,0.47967]
[1737822277468,0.00449236,3336.4,3336.3,0.47964]
[1737822277668,0.05154496,3336.4,3336.3,0.47964]
[1737822277968,0.05154496,3336.4,3335.7,0.9065]
[1737822278162,0.00449236,3336.4,3336.3,0.47964]
[1737822278565,1.19846,3338.2,3337.0,0.47953]
[1737822278566,0.47948,3337.4,3337.0,0.47953]
[1737822278962,3.13266629,3337.3,3336.4,0.9373]
[1737822279168,3.13266629,3337.3,3337.0,0.47954]
[1737822279472,2.26446629,3337.6,3336.8,1.19893]
[1737822279666,0.00449236,3337.5,3336.9,1.7323]
[1737822279866,0.00449236,3337.5,3337.4,0.47948]
[1737822281569,4.1718,3338.4,3338.3,0.47935]
[1737822281769,0.964,3338.4,3338.3,0.47935]
[1737822283176,0.964,3338.4,3337.8,5.0128]
[1737822283378,0.47936,3338.3,3337.9,0.4794]
[1737822283576,0.47936,3338.3,3337.9,0.47941]
[1737822284274,0.8633,3338.3,3337.8,1.805]
[1737822284475,0.8633,3338.3,3338.1,0.47938]
[1737822284872,0.8633,3338.3,3337.8,1.805]
[1737822285072,1.34265,3338.3,3337.8,1.805]
[1737822285274,1.34265,3338.3,3337.9,0.4794]
[1737822285477,0.8633,3338.3,3337.8,1.805]
[1737822285677,1.34266,3338.3,3338.0,0.47939]
[1737822285872,0.47938,3338.2,3337.8,2.28441]
[1737822286074,0.47938,3338.2,3337.9,0.4794]
[1737822286282,2.74383629,3338.2,3337.9,0.47941]
[1737822286980,0.8633,3338.3,3337.8,1.805]
[1737822287184,0.8633,3338.3,3337.9,0.47941]
[1737822287480,0.8633,3338.3,3338.1,0.47937]
[1737822288976,0.8633,3338.3,3338.0,0.47939]
[1737822290278,0.04707914,3338.2,3338.0,0.47939]
[1737822290677,0.8633,3338.3,3338.0,0.47939]
[1737822291183,0.8633,3338.3,3338.1,0.47937]
[1737822291487,0.964,3338.4,3337.8,1.805]
[1737822291679,0.964,3338.4,3338.1,0.47937]
[1737822291879,0.964,3338.4,3337.8,1.805]
[1737822291880,0.964,3338.4,3338.0,0.47939]
[1737822292080,0.47936,3338.3,3337.8,1.805]
[1737822292284,1.41756,3338.3,3337.9,0.4794]
[1737822292484,0.47937,3338.2,3337.9,0.4794]
[1737822292688,0.9382,3338.3,3337.8,1.805]
[1737822292876,2.26446629,3338.2,3337.3,3.2078]
[1737822293076,1.39449,3338.1,3337.7,0.47942]
[1737822293286,0.04709179,3338.0,3337.3,3.2078]
[1737822293490,0.90389179,3338.0,3337.8,0.47942]
[1737822293682,0.8568,3338.0,3337.8,0.47942]
[1737822295384,2.26446629,3337.9,3337.0,1.19884]
[1737822295584,2.26446629,3337.9,3336.9,4.9316]
[1737822295790,3.68725,3337.7,3337.4,0.47948]
[1737822296088,3.68725,3337.7,3337.5,0.47947]
[1737822296878,2.26446629,3337.9,3336.9,4.9316]
[1737822297084,0.04710068,3337.8,3337.1,3.46328629]
[1737822297278,0.8568,3338.0,3337.1,2.26446629]
[1737822297487,3.2078,3338.1,3338.0,0.47939]
[1737822297786,3.2078,3338.1,3337.2,1.21701025]
[1737822297787,3.25490499,3338.1,3337.2,0.8682]
[1737822297988,0.47943,3337.8,3337.5,1.40707]
[1737822298185,2.26446629,3337.9,3337.5,0.9276]
[1737822298592,0.52654071,3337.8,3337.5,1.40706]